bitfinex/quotes_ETHUSD_20240603
["timestamp","ask_amount","ask_price","bid_price","bid_amount"]
[1717455125461,1.66473349,3776.7,3776.6,0.563]
[1717455130383,1.66473349,3776.7,3776.4,1.38036165]
[1717455130543,1.66473349,3776.7,3776.6,0.563]
[1717455131060,0.07485566,3776.7,3776.6,0.563]
[1717455131256,1.66473314,3776.7,3776.6,0.563]
[1717455131457,1.58987748,3776.7,3776.6,0.563]
[1717455131762,1.66472384,3776.7,3776.6,0.563]
[1717455132543,1.66472384,3776.7,3776.3,1.38036076]
[1717455132773,1.66472384,3776.7,3776.6,0.563]
[1717455133791,1.66472384,3776.7,3776.2,0.55434072]
[1717455133959,1.66472384,3776.7,3776.6,0.563]
[1717455148668,1.66472384,3776.7,3776.6,1.88426577]
[1717455148872,1.58987748,3776.7,3776.6,1.88426577]
[1717455149388,1.66473314,3776.7,3776.6,1.88426577]
[1717455150591,1.6647306,3776.7,3776.6,1.88426577]
[1717455156809,2.23708619,3776.7,3776.6,1.88426577]
[1717455156994,1.66473105,3776.7,3776.6,1.88426577]
[1717455158128,1.66473105,3776.7,3776.6,0.563]
[1717455158985,1.66473105,3776.7,3776.4,2.3401]
[1717455159228,1.66473105,3776.7,3776.6,0.563]
[1717455160637,1.66473105,3776.7,3776.6,1.88426577]
[1717455164160,2.23708409,3776.7,3776.6,1.88426577]
[1717455164456,1.66472951,3776.7,3776.6,1.88426577]
[1717455164744,1.66472951,3776.7,3776.6,1.32126577]
[1717455165060,1.66472951,3776.7,3776.6,1.88426577]
[1717455165238,1.66472951,3776.7,3776.6,1.32126577]
[1717455165409,1.66472951,3776.7,3776.6,1.88426577]
[1717455167309,1.66472951,3776.7,3776.6,1.32126577]
[1717455167609,1.66472951,3776.7,3776.6,1.88426577]
[1717455171971,2.2370851,3776.7,3776.6,1.88426577]
[1717455172170,1.66473025,3776.7,3776.6,1.88426577]
[1717455179688,2.23708963,3776.7,3776.6,1.88426577]
[1717455179846,1.66473358,3776.7,3776.6,1.88426577]
[1717455184793,1.66473358,3776.7,3776.3,0.55434072]
[1717455184993,1.66473358,3776.7,3776.6,0.563]
[1717455190056,0.07485566,3776.7,3776.6,0.563]
[1717455190261,1.66473669,3776.7,3776.6,0.563]
[1717455190471,1.58988103,3776.7,3776.6,0.563]
[1717455190714,1.66466554,3776.7,3776.6,0.563]
[1717455191356,0.07478451,3776.7,3776.6,0.563]
[1717455191664,1.58987969,3776.7,3776.6,0.563]
[1717455192002,1.66466021,3776.7,3776.6,0.563]
[1717455193548,1.66466021,3776.7,3776.4,1.38036293]
[1717455193759,3.97596021,3776.7,3776.5,1.48324199]
[1717455194057,0.57235668,3776.6,3776.5,0.563]
[1717455194352,0.64712752,3776.6,3776.2,0.55434072]
[1717455194561,0.64712752,3776.6,3776.5,0.563]
[1717455195557,0.07477084,3776.6,3776.5,1.48324296]
[1717455196643,0.07477084,3776.6,3776.5,0.563]
[1717455197047,0.07477084,3776.6,3776.5,1.48324273]
[1717455197204,0.07477084,3776.6,3776.5,0.563]
[1717455198109,0.07477084,3776.6,3776.5,1.48324274]
[1717455198335,0.07477084,3776.6,3776.5,0.563]
[1717455200227,0.64712769,3776.6,3776.5,0.563]
[1717455204602,0.64712938,3776.6,3776.5,0.563]
[1717455204773,0.64712938,3776.6,3776.3,1.38036783]
[1717455204972,0.07477084,3776.6,3776.5,0.563]
[1717455205373,0.79438026,3776.6,3776.3,1.38036783]
[1717455205599,2.4327,3776.5,3776.4,0.92024573]
[1717455205760,2.64802,3776.4,3775.9,0.55434072]
[1717455205968,2.64802,3776.4,3775.7,1.11734072]
[1717455205969,1.59005028,3776.1,3775.7,1.11734072]
[1717455206195,1.59005028,3776.1,3775.8,2.30092442]
[1717455206402,0.07470368,3776.0,3775.8,0.563]
[1717455206789,2.16240882,3776.2,3775.8,0.563]
[1717455206984,0.07469399,3775.9,3775.8,0.563]
[1717455207293,0.07454859,3775.9,3775.8,0.563]
[1717455207481,0.57243564,3776.2,3775.8,0.563]
[1717455207684,0.07456797,3776.1,3775.6,1.38055367]
[1717455207932,0.07456797,3776.1,3775.7,0.92036935]
[1717455208091,0.07456797,3776.1,3775.9,0.563]
[1717455208719,4.02275028,3776.3,3775.9,0.563]
[1717455208900,0.07458209,3776.2,3775.9,0.563]
[1717455209073,4.59523551,3776.3,3775.9,0.563]
[1717455209273,0.07458209,3776.2,3775.9,0.563]
[1717455209618,2.4327,3776.3,3775.9,0.563]
[1717455209799,0.0745724,3776.1,3775.9,0.563]
[1717455209972,2.4327,3776.3,3775.9,0.563]
[1717455210174,0.07456272,3776.0,3775.9,0.563]
[1717455210384,2.4327,3776.3,3775.9,0.563]
[1717455210613,0.07456272,3776.0,3775.9,0.563]
[1717455210811,2.64817,3776.2,3775.5,4.02918393]
[1717455211021,0.07456272,3776.0,3775.6,0.92038492]
[1717455211183,0.0745724,3776.1,3775.7,0.563]
[1717455211382,0.07438834,3775.9,3775.7,0.563]
[1717455211609,3.31526696,3776.2,3775.7,0.563]
[1717455211789,0.0744138,3775.8,3775.7,0.563]
[1717455212299,3.31526696,3776.2,3775.7,0.563]
[1717455212485,0.07444334,3776.1,3775.7,0.563]
[1717455213186,2.4327,3776.0,3775.4,1.38058391]
[1717455213391,2.4327,3776.0,3775.7,0.563]
[1717455213588,0.07442397,3775.9,3775.7,0.563]
[1717455214967,2.72280397,3775.9,3775.1,1.93492463]
[1717455215167,2.4327,3775.8,3775.2,0.92043616]
[1717455215430,2.64852,3775.7,3775.2,0.563]
[1717455215567,2.72294867,3775.7,3775.2,0.563]
[1717455218568,2.72294867,3775.7,3774.6,2.3327]
[1717455218767,3.3975265,3775.7,3774.7,2.24185051]
[1717455219013,5.08144,3775.4,3774.7,1.32126577]
[1717455219242,5.08144,3775.4,3775.1,0.563]
[1717455219445,5.08144,3775.4,3774.5,1.38087711]
[1717455219446,0.07412545,3775.3,3775.2,0.563]
[1717455220435,0.07412545,3775.3,3774.4,4.98205]
[1717455220623,2.64888,3775.2,3775.1,0.563]
[1717455220949,3.23856945,3775.2,3775.1,0.563]
[1717455221743,2.7229989,3775.2,3775.1,0.563]
[1717455224228,2.7229989,3775.2,3774.5,1.32126577]
[1717455224430,2.7229989,3775.2,3775.1,0.563]
[1717455225950,2.7229989,3775.2,3774.5,1.32126577]
[1717455226145,2.7229989,3775.2,3775.1,0.563]
[1717455226618,3.23856879,3775.2,3774.5,1.32126577]
[1717455226831,2.7229989,3775.2,3774.4,2.3109]
[1717455227149,2.7229989,3775.2,3774.9,0.563]
[1717455228516,2.7229989,3775.2,3774.4,2.3109]
[1717455228714,2.7229989,3775.2,3774.9,0.563]
[1717455230753,2.7229989,3775.2,3774.4,2.3109]
[1717455230956,2.7229989,3775.2,3774.9,0.563]
[1717455231141,3.23856879,3775.2,3774.9,0.563]
[1717455231339,2.3775,3775.1,3774.9,0.563]
[1717455231641,2.72300005,3775.0,3774.9,0.563]
[1717455233448,2.72300005,3775.0,3774.2,2.3643]
[1717455233766,2.649,3775.0,3774.9,0.563]
[1717455234172,2.72295817,3775.0,3774.9,0.563]
[1717455244339,2.72295817,3775.0,3774.3,1.32126577]
[1717455244881,2.72295817,3775.0,3774.8,0.563]
[1717455245370,2.72295817,3775.0,3774.3,1.32126577]
[1717455245569,2.72295817,3775.0,3774.8,0.563]
[1717455246935,2.4884,3774.9,3774.8,0.563]
[1717455247242,2.5623656,3774.9,3774.8,0.563]
[1717455248040,0.0739656,3774.9,3774.8,0.563]
[1717455250587,0.0739656,3774.9,3774.3,1.32126577]
[1717455250887,0.0739656,3774.9,3774.8,0.563]
[1717455251071,0.0739656,3774.9,3774.3,1.32126577]
[1717455251391,0.0739656,3774.9,3774.8,0.563]
[1717455255751,2.6488,3775.3,3774.8,2.9785]
[1717455255752,0.57262825,3775.2,3774.8,2.9785]
[1717455255996,0.57262825,3775.2,3775.1,0.563]
[1717455256199,2.6488,3775.3,3775.1,0.563]
[1717455256855,5.78122383,3775.5,3775.1,0.563]
[1717455257052,5.78122383,3775.5,3775.4,0.563]
[1717455257262,6.35378649,3775.5,3775.4,0.563]
[1717455258472,5.78122383,3775.5,3775.4,0.563]
[1717455258670,2.64858,3775.7,3775.4,0.563]
[1717455258926,0.57254218,3775.6,3775.4,0.563]
[1717455259605,0.07408689,3775.5,3775.4,0.563]
[1717455262033,2.64858,3775.7,3775.4,0.563]
[1717455262332,0.07408689,3775.5,3775.4,0.563]
[1717455262835,2.64858,3775.7,3775.4,0.563]
[1717455263159,0.07408689,3775.5,3775.4,0.563]
[1717455263299,2.64858,3775.7,3775.4,0.563]
[1717455263498,0.07408689,3775.5,3775.4,0.563]
[1717455263700,2.64858,3775.7,3775.4,0.563]
[1717455263925,0.07418286,3775.5,3775.0,3.72023471]
[1717455264140,2.64858,3775.7,3775.4,0.563]
[1717455264287,2.64858,3775.7,3775.6,0.563]
[1717455267634,2.64858,3775.7,3775.1,1.32126577]
[1717455267837,2.59858,3775.7,3775.5,0.563]
[1717455268206,2.59858,3775.7,3775.1,1.32126577]
[1717455268406,2.59858,3775.7,3775.5,0.563]
[1717455269308,2.59858,3775.7,3775.0,2.3394]
[1717455269512,2.59858,3775.7,3775.5,0.563]
[1717455271149,5.08578,3775.7,3774.9,1.38080922]
[1717455271362,2.6487,3775.5,3775.4,0.563]
[1717455274113,2.72281167,3775.5,3775.4,0.563]
[1717455278630,2.72281167,3775.5,3775.2,0.563]
[1717455280367,2.72281167,3775.5,3775.3,0.563]
[1717455281365,2.72281167,3775.5,3774.8,1.38082044]
[1717455281548,2.72281167,3775.5,3775.3,0.563]
[1717455286584,0.07411167,3775.5,3775.3,1.88426577]
[1717455286736,0.57252972,3775.8,3775.3,1.88426577]
[1717455286930,0.57252972,3775.8,3775.7,0.563]
[1717455287560,0.57247567,3775.8,3775.7,0.563]
[1717455288667,2.64844,3775.9,3775.7,0.563]
[1717455289175,0.0741005,3775.8,3775.7,0.563]
[1717455294887,0.0741005,3775.8,3775.7,1.88426577]
[1717455295413,0.0741544,3775.8,3775.7,1.88426577]
[1717455295566,5.78122383,3776.4,3775.7,2.80458876]
[1717455295769,0.07434519,3776.3,3776.2,0.563]
[1717455299311,2.64796,3776.5,3776.2,0.563]
[1717455299524,0.07436066,3776.3,3776.2,0.563]
[1717455299704,2.64796,3776.5,3776.2,0.563]
[1717455299904,0.07436066,3776.3,3776.2,0.563]
[1717455300087,2.64796,3776.5,3776.2,0.563]
[1717455300287,0.07436066,3776.3,3776.2,0.563]
[1717455300503,2.64796,3776.5,3776.2,0.563]
[1717455300706,0.07436066,3776.3,3776.2,0.563]
[1717455300906,2.64796,3776.5,3776.2,0.563]
[1717455301278,0.07446011,3776.4,3776.2,0.563]
[1717455306990,2.6481,3776.3,3776.0,0.563]
[1717455307426,0.07441778,3776.2,3776.0,0.563]
[1717455307594,2.6481,3776.3,3776.0,0.563]
[1717455308124,0.07440538,3776.2,3775.9,0.563]
[1717455308640,2.6481,3776.3,3775.9,0.563]
[1717455308790,0.0743957,3776.1,3775.9,0.563]
[1717455308990,2.6481,3776.3,3775.9,0.563]
[1717455309319,0.07440538,3776.2,3775.9,0.563]
[1717455309702,2.6481,3776.3,3775.9,0.563]
[1717455309904,0.0743957,3776.1,3775.9,0.563]
[1717455310233,0.07438601,3776.0,3775.9,0.563]
[1717455310530,0.57244115,3776.2,3775.9,0.563]
[1717455310826,2.64839,3775.9,3775.2,5.51030072]
[1717455311127,2.64839,3775.9,3775.6,0.563]
[1717455311333,0.07436664,3775.8,3775.6,0.563]
[1717455313590,0.07436664,3775.8,3774.9,0.55434072]
[1717455313591,2.64852,3775.7,3774.9,2.99664072]
[1717455313787,2.64852,3775.7,3775.6,0.563]
[1717455316796,2.3595,3775.6,3775.0,1.32126577]
[1717455316995,2.3595,3775.6,3775.5,0.563]
[1717455318334,2.64852,3775.7,3775.5,0.563]
[1717455319298,0.07425883,3775.6,3775.5,0.563]
[1717455321144,0.07425883,3775.6,3775.0,1.32126577]
[1717455321315,0.07425883,3775.6,3775.5,0.563]
[1717455323557,0.07425883,3775.6,3775.0,1.32126577]
[1717455323703,0.07425883,3775.6,3775.5,0.563]
[1717455339257,0.64675481,3775.6,3775.5,0.563]
[1717455339556,0.07425883,3775.6,3775.5,0.563]
[1717455342851,0.57248044,3775.8,3775.5,0.563]
[1717455343052,0.07430568,3775.7,3775.5,0.563]
[1717455343338,0.57248044,3775.8,3775.5,0.563]
[1717455343489,0.07429599,3775.6,3775.5,0.563]
[1717455343700,0.57248044,3775.8,3775.5,0.563]
[1717455343848,0.07429599,3775.6,3775.5,0.563]
[1717455344043,0.57248044,3775.8,3775.5,0.563]
[1717455344348,0.07430568,3775.7,3775.5,0.563]
[1717455344567,0.57248044,3775.8,3775.5,0.563]
[1717455344764,0.07429599,3775.6,3775.5,0.563]
[1717455345009,0.57248044,3775.8,3775.5,0.563]
[1717455345193,0.07429599,3775.6,3775.5,0.563]
[1717455345394,0.57248044,3775.8,3775.5,0.563]
[1717455345595,0.07429599,3775.6,3775.5,0.563]
[1717455345790,0.57248044,3775.8,3775.5,0.563]
[1717455346283,0.07430568,3775.7,3775.5,0.563]
[1717455346486,0.57248044,3775.8,3775.5,0.563]
[1717455346684,0.07429599,3775.6,3775.5,0.563]
[1717455347122,0.57248044,3775.8,3775.5,0.563]
[1717455347408,0.07429599,3775.6,3775.5,0.563]
[1717455347594,0.57248044,3775.8,3775.5,0.563]
[1717455347771,0.07429599,3775.6,3775.5,0.563]
[1717455347967,0.57248044,3775.8,3775.5,0.563]
[1717455348201,0.07429599,3775.6,3775.5,0.563]
[1717455348568,0.57248044,3775.8,3775.5,0.563]
[1717455348773,0.07429599,3775.6,3775.5,0.563]
[1717455349071,0.57248044,3775.8,3775.5,0.563]
[1717455349298,0.07429599,3775.6,3775.5,0.563]
[1717455349503,0.57248044,3775.8,3775.5,0.563]
[1717455349687,0.07429599,3775.6,3775.5,0.563]
[1717455349885,0.57248044,3775.8,3775.3,1.38065552]
[1717455350088,0.07434281,3775.6,3775.4,1.48344685]
[1717455350287,0.57248044,3775.8,3775.4,0.563]
[1717455350482,0.07429766,3775.5,3775.3,1.38072098]
[1717455350707,0.57250497,3775.8,3775.4,0.563]
[1717455350914,0.57250497,3775.7,3775.4,0.563]
[1717455351274,0.57250497,3775.8,3775.4,0.563]
[1717455351800,2.3595,3775.9,3775.4,0.563]
[1717455351801,0.57250497,3775.7,3775.4,0.563]
[1717455352078,0.57250497,3775.8,3775.4,0.563]
[1717455352272,0.57250497,3775.7,3775.1,0.55434072]
[1717455352471,2.3595,3775.9,3775.4,0.563]
[1717455352672,1.07329451,3775.8,3775.2,1.38073915]
[1717455352911,0.57251251,3775.7,3775.4,0.563]
[1717455353123,0.57251251,3775.8,3775.4,0.563]
[1717455353328,0.57251251,3775.7,3775.3,1.3807379]
[1717455353610,0.57251251,3775.8,3775.3,0.563]
[1717455353812,0.57251251,3775.8,3775.4,0.92049228]
[1717455354016,0.57251251,3775.7,3775.1,0.55434072]
[1717455354171,0.57251251,3775.7,3775.2,2.30124081]
[1717455354377,0.55803325,3775.8,3775.0,2.2525]
[1717455354378,0.57251251,3775.6,3775.3,0.563]
[1717455354605,0.57251251,3775.5,3775.1,1.38080531]
[1717455354818,0.57251251,3775.7,3775.3,0.563]
[1717455355034,0.57251251,3775.6,3775.3,0.563]
[1717455355191,0.57251251,3775.5,3775.3,0.563]
[1717455355377,0.61383658,3775.7,3775.3,0.563]
[1717455355378,0.57251251,3775.6,3775.3,0.563]
[1717455355575,0.57251251,3775.5,3775.3,0.563]
[1717455355814,0.61383658,3775.7,3775.3,0.563]
[1717455355815,0.57251251,3775.6,3775.3,0.563]
[1717455355989,0.57251251,3775.5,3775.3,0.563]
[1717455356312,0.57251251,3775.6,3775.3,0.563]
[1717455356683,0.57251251,3775.8,3775.3,0.563]
[1717455356887,0.57251251,3775.7,3775.3,0.563]
[1717455357110,0.57251251,3775.6,3775.3,0.563]
[1717455357324,0.57251251,3775.8,3775.3,0.563]
[1717455357475,0.57251251,3775.7,3775.3,0.563]
[1717455357782,0.57251251,3775.6,3775.3,0.563]
[1717455357981,1.12337271,3775.8,3775.3,0.563]
[1717455358183,0.57251251,3775.7,3775.3,0.563]
[1717455360902,0.57251251,3775.8,3775.3,0.563]
[1717455361143,0.57251251,3775.7,3775.3,0.563]
[1717455361404,2.64851,3775.7,3775.3,0.563]
[1717455361720,0.57251251,3775.6,3775.3,0.563]
[1717455363143,0.57252623,3775.6,3775.3,0.563]
[1717455363868,0.57252623,3775.6,3775.5,0.563]
[1717455364222,2.64851,3775.7,3775.5,0.563]
[1717455364416,0.07424919,3775.6,3775.5,0.563]
[1717455365324,0.07424919,3775.6,3775.5,1.48345649]
[1717455366473,0.07424919,3775.6,3775.5,0.563]
[1717455367365,0.07424919,3775.6,3775.3,1.38069112]
[1717455367666,0.07424919,3775.6,3775.5,0.563]
[1717455371668,0.64676452,3775.6,3775.5,0.563]
[1717455371874,0.64676452,3775.6,3775.3,0.563]
[1717455372566,2.64865,3775.5,3775.0,0.55434072]
[1717455372739,2.72292974,3775.5,3775.1,2.3013328]
[1717455373065,0.57254033,3775.4,3775.0,0.563]
[1717455373269,0.57254033,3775.4,3774.8,0.55434072]
[1717455373270,4.95999,3775.3,3774.9,1.38085845]
[1717455373497,5.03425036,3775.3,3774.9,1.94385845]
[1717455373702,5.03425036,3775.3,3774.9,0.563]
[1717455373703,0.57259013,3775.2,3774.9,0.563]
[1717455373864,0.64663651,3775.2,3774.9,0.563]
[1717455374278,0.07404638,3775.2,3774.9,0.563]
[1717455374477,4.95999,3775.3,3774.9,0.563]
[1717455374677,0.07404638,3775.2,3774.9,0.563]
[1717455374882,4.95999,3775.3,3774.9,0.563]
[1717455375208,0.07397479,3775.1,3774.9,0.563]
[1717455375500,0.0739651,3775.0,3774.9,0.563]
[1717455375681,4.95999,3775.3,3774.9,1.48359626]
[1717455375880,0.07398448,3775.2,3774.9,0.563]
[1717455376104,4.95999,3775.3,3774.9,0.563]
[1717455376300,0.07397479,3775.1,3774.9,0.563]
[1717455376605,4.95999,3775.3,3774.9,0.563]
[1717455377223,0.07398448,3775.2,3774.9,0.563]
[1717455377418,0.07398448,3775.2,3775.1,0.563]
[1717455377563,2.64879,3775.3,3775.1,0.563]
[1717455377769,0.07398448,3775.2,3775.1,0.563]
[1717455377998,2.64879,3775.3,3775.1,0.563]
[1717455378180,0.07401544,3775.2,3775.1,0.563]
[1717455378370,2.64879,3775.3,3775.1,0.563]
[1717455378592,0.07401544,3775.2,3775.1,0.563]
[1717455378944,2.64879,3775.3,3775.1,0.563]
[1717455379109,0.07401544,3775.2,3775.1,0.563]
[1717455379310,2.64879,3775.3,3775.1,0.563]
[1717455379529,0.07401544,3775.2,3775.1,0.563]
[1717455379841,2.64879,3775.3,3775.1,0.563]
[1717455380195,0.07401544,3775.2,3775.1,0.563]
[1717455380394,0.07401544,3775.2,3774.9,1.38089366]
[1717455380612,0.57254281,3775.5,3775.1,0.563]
[1717455383927,4.91903,3775.4,3774.9,1.38080061]
[1717455384135,4.91903,3775.4,3775.1,0.563]
[1717455386740,0.07399726,3775.3,3775.1,0.563]
[1717455386944,2.37149726,3775.3,3774.9,1.38080061]
[1717455387243,2.37149726,3775.3,3775.0,1.4835348]
[1717455387454,2.37149726,3775.3,3775.0,0.563]
[1717455391274,2.64886,3775.2,3775.0,0.563]
[1717455391488,0.07397788,3775.1,3775.0,0.563]
[1717455393111,0.07397788,3775.1,3774.7,1.38086562]
[1717455393286,0.07397788,3775.1,3774.9,0.563]
[1717455404825,0.07397788,3775.1,3774.9,3.0331]
[1717455405126,0.07397788,3775.1,3775.0,0.92054852]
[1717455406134,0.07394351,3775.1,3775.0,0.92054852]
[1717455406286,0.57255508,3775.4,3775.0,0.92054852]
[1717455406630,0.07396289,3775.3,3775.2,0.563]
[1717455410026,2.64867,3775.5,3775.2,0.563]
[1717455410223,0.07401552,3775.3,3775.0,1.38093699]
[1717455410444,2.64867,3775.5,3775.2,0.563]
[1717455410623,2.64867,3775.5,3775.4,0.563]
[1717455412552,2.64867,3775.5,3775.3,0.563]
[1717455412728,2.64867,3775.5,3775.0,1.38093699]
[1717455412912,2.64867,3775.5,3775.1,2.30144965]
[1717455413113,2.64867,3775.5,3775.3,0.563]
[1717455413418,2.4894,3775.4,3775.1,1.38093699]
[1717455413730,2.64867,3775.5,3775.2,0.563]
[1717455415232,2.64879,3775.3,3775.0,1.38093699]
[1717455415431,2.64879,3775.3,3774.9,0.55434072]
[1717455415432,2.64879,3775.3,3775.1,0.563]
[1717455420773,2.64879,3775.3,3774.9,1.38086756]
[1717455422061,2.64879,3775.3,3774.7,0.55434072]
[1717455422242,2.64879,3775.3,3774.8,2.86453431]
[1717455422441,2.64879,3775.3,3774.9,0.92061386]
[1717455422643,2.64879,3775.3,3774.8,1.94392893]
[1717455422842,2.64879,3775.3,3774.9,0.92062215]
[1717455423041,2.64879,3775.3,3774.8,0.563]
[1717455423273,2.64879,3775.3,3774.9,0.92060248]
[1717455423485,2.64879,3775.3,3774.9,0.563]
[1717455423701,2.64895,3775.1,3774.7,0.55434072]
[1717455423978,2.2641,3775.0,3774.8,0.92061903]
[1717455424140,2.2641,3775.0,3774.7,0.563]
[1717455424347,0.07392333,3774.9,3774.8,0.92064074]
[1717455426537,0.07392333,3774.9,3774.8,0.92063324]
[1717455427180,0.07392333,3774.9,3774.8,2.30157414]
[1717455427339,0.07392333,3774.9,3774.8,0.92063324]
[1717455428597,0.07392333,3774.9,3774.8,2.30157182]
[1717455428873,0.07392333,3774.9,3774.8,0.92063324]
[1717455433464,2.64895,3775.1,3774.8,1.48363324]
[1717455433676,0.0735221,3774.9,3774.8,0.563]
[1717455433859,2.64895,3775.1,3774.8,1.48364312]
[1717455434060,0.0735221,3774.9,3774.8,0.563]
[1717455434369,0.0735221,3774.9,3774.8,1.48364442]
[1717455434685,2.64895,3775.1,3774.8,1.48364442]
[1717455434879,2.64895,3775.1,3774.8,0.563]
[1717455434880,0.07355307,3774.9,3774.8,0.563]
[1717455435195,0.07355307,3774.9,3774.8,1.48364228]
[1717455435406,2.64895,3775.1,3774.8,1.48364228]
[1717455435568,0.07356276,3775.0,3774.8,0.563]
[1717455439749,0.07356276,3775.0,3774.7,1.38096777]
[1717455440045,0.07356276,3775.0,3774.7,0.563]
[1717455441028,0.07356276,3775.0,3774.7,1.94398397]
[1717455441230,0.07356276,3775.0,3774.7,0.563]
[1717455442394,0.07356276,3775.0,3774.6,1.38097905]
[1717455442595,0.07356276,3775.0,3774.8,0.563]
[1717455448237,0.64616807,3775.0,3774.8,0.563]
[1717455448397,0.07356276,3775.0,3774.8,0.563]
[1717455449098,0.64616298,3775.0,3774.8,0.563]
[1717455450998,0.07356276,3775.0,3774.8,0.563]
[1717455451427,0.64616342,3775.0,3774.8,0.563]
[1717455453033,0.07356276,3775.0,3774.8,0.563]
[1717455453222,0.64616018,3775.0,3774.8,0.563]
[1717455454916,0.07356276,3775.0,3774.8,0.563]
[1717455455348,0.07356276,3775.0,3774.9,0.92058505]
[1717455455564,0.07356276,3775.0,3774.9,2.30155417]
[1717455455733,0.07356276,3775.0,3774.9,0.92058505]
[1717455455920,0.07356276,3775.0,3774.9,2.30155417]
[1717455456343,0.07356276,3775.0,3774.9,4.78225417]
[1717455456545,0.07356276,3775.0,3774.9,3.40128505]
[1717455456747,2.64895,3775.1,3774.9,3.40128505]
[1717455457051,1.59058056,3775.3,3775.0,0.563]
[1717455457282,2.16313197,3775.3,3775.0,0.563]
[1717455457555,0.07363567,3775.2,3775.0,0.563]
[1717455457744,0.57255141,3775.3,3775.0,0.563]
[1717455458053,0.07363567,3775.2,3775.0,0.563]
[1717455458557,4.23932056,3775.4,3775.0,0.563]
[1717455458769,2.16313575,3775.3,3775.0,0.563]
[1717455459128,0.64620055,3775.3,3775.0,0.563]
[1717455459333,0.64620177,3775.3,3775.0,0.563]
[1717455459633,0.64620177,3775.3,3775.1,0.92054969]
[1717455459812,0.64620177,3775.3,3775.0,0.563]
[1717455460027,0.64620177,3775.3,3775.1,0.92054522]
[1717455460376,0.07364536,3775.3,3775.0,1.94381537]
[1717455460582,0.07364536,3775.3,3775.1,0.92054906]
[1717455460880,2.23664177,3775.3,3775.0,0.563]
[1717455461647,0.64620728,3775.3,3775.0,0.563]
[1717455462068,0.07364536,3775.3,3775.1,0.92054593]
[1717455462237,0.07364536,3775.3,3774.9,0.55434072]
[1717455462575,0.07364536,3775.3,3775.1,0.563]
[1717455466776,0.07364536,3775.3,3775.2,8.63175943]
[1717455466933,0.07364536,3775.3,3775.2,9.46327051]
[1717455467134,1.59039763,3776.2,3775.2,9.46039392]
[1717455467359,2.16257273,3776.2,3775.9,0.563]
[1717455467556,0.07127762,3776.1,3775.9,0.563]
[1717455468876,0.57244509,3776.2,3775.9,0.563]
[1717455469176,0.07126793,3776.0,3775.9,0.563]
[1717455469363,4.23822701,3776.3,3775.9,0.563]
[1717455469884,0.0712873,3776.2,3775.3,1.93299755]
[1717455470035,0.0712873,3776.2,3775.8,0.563]
[1717455470239,4.23822701,3776.3,3775.8,0.563]
[1717455470465,0.07138965,3776.2,3775.8,0.563]
[1717455470838,4.23822701,3776.3,3775.8,0.563]
[1717455471151,0.07137724,3776.2,3775.8,0.563]
[1717455471353,2.64823,3776.1,3775.8,0.563]
[1717455471751,0.07135787,3776.0,3775.8,0.563]
[1717455479679,0.07135787,3776.0,3775.4,1.32126577]
[1717455479885,0.07135787,3776.0,3775.7,0.563]
[1717455480627,5.92176634,3783.4,3775.9,0.563]
[1717455480628,5.78122383,3777.7,3775.9,0.563]
[1717455480807,2.64602,3779.3,3777.0,6.75581577]
[1717455480808,0.62977325,3777.4,3777.0,6.75581577]
[1717455481009,0.75,3777.3,3777.0,3.96881577]
[1717455481209,2.6468,3778.2,3777.3,0.563]
[1717455481210,0.57245988,3778.1,3777.3,0.563]
[1717455481409,0.57245988,3778.1,3777.5,0.563]
[1717455481612,0.05745749,3778.0,3777.5,0.563]
[1717455481817,2.6468,3778.2,3777.5,0.563]
[1717455483586,0.05790211,3778.1,3777.5,0.563]
[1717455486861,0.05790211,3778.1,3777.3,3.96862577]
[1717455487053,0.05790211,3778.1,3777.5,0.563]
[1717455488430,0.05790211,3778.1,3777.6,3.75586577]
[1717455488723,5.78122383,3778.6,3777.6,3.75586577]
[1717455488724,5.78122383,3778.6,3778.1,2.64677]
[1717455488945,5.78122383,3778.6,3778.5,0.563]
[1717455489153,2.64618,3779.1,3778.5,0.563]
[1717455489348,0.60364827,3779.1,3778.5,0.563]
[1717455489596,0.60364827,3779.1,3778.7,0.563]
[1717455490369,0.60364827,3779.1,3778.8,0.563]
[1717455492065,5.78122383,3779.3,3778.9,6.42651577]
[1717455492447,5.78122383,3779.3,3779.2,0.563]
[1717455493053,5.78122383,3779.3,3778.9,6.42651577]
[1717455493252,5.78122383,3779.3,3779.2,0.563]
[1717455494282,5.78122383,3780.2,3779.3,2.64598]
[1717455494495,3.0,3780.1,3779.9,0.563]
[1717455494670,0.31377015,3780.3,3779.9,0.563]
[1717455498136,0.31377015,3780.3,3779.3,3.96724577]
[1717455498422,0.31377015,3780.3,3779.8,0.563]
[1717455498733,5.7829515,3780.4,3779.3,3.96724577]
[1717455498734,5.7829515,3780.4,3780.0,0.563]
[1717455499038,3.1377015,3780.4,3780.2,0.563]
[1717455499341,3.1377015,3780.4,3780.3,0.563]
[1717455499342,0.1377015,3780.4,3780.3,0.563]
[1717455500387,0.1377015,3780.4,3779.4,5.0491]
[1717455500586,2.7829515,3780.4,3779.9,0.563]
[1717455500777,3.36124665,3780.4,3779.9,0.563]
[1717455501529,3.36124665,3780.4,3779.5,1.32126577]
[1717455501728,3.36124665,3780.4,3779.9,0.563]
[1717455501901,3.36124665,3780.4,3779.5,1.32126577]
[1717455502108,3.36124665,3780.4,3780.0,0.563]
[1717455502760,2.64536,3780.2,3780.0,0.563]
[1717455502944,2.64536,3780.2,3779.8,0.563]
[1717455503505,2.64536,3780.2,3779.0,2.64616]
[1717455503810,2.6456,3779.9,3779.3,0.563]
[1717455504655,2.64592,3779.4,3778.3,2.4338]
[1717455504884,2.64592,3779.4,3779.0,0.563]